[Event "19th IPCA WCC 2019"]
[Site "Ruzomberok"]
[Date "2019.06.28"]
[Round "1.11"]
[White "Mukha, Nikolay"]
[Black "Pilimon, Zbigniew"]
[Result "1-0"]
[ECO "D34"]
[WhiteElo "2159"]
[BlackElo "1670"]
[Annotator "NA"]
[PlyCount "75"]
[EventDate "2019.06.28"]
[EventType "swiss"]
[EventCountry "SVK"]
[SourceTitle "playchess.com"]
[Source "ChessBase"]
[SourceQuality "1"]
[TimeControl "5400+30"]

1. c4 {[%emt 0:00:00]} c5 {[%emt 0:00:00]} 2. g3 {[%emt 0:00:00]} e6 {[%emt 0:00:51]} 3. Nf3 {[%emt 0:00:26]} Nf6 {[%emt 0:00:59]} 4. Bg2 {[%emt 0:00:03]} Be7 {[%emt 0:00:38]} 5. O-O {[%emt 0:00:36]} O-O {[%emt 0:00:25]} 6. Nc3 {[%emt 0:00:19]} d5 {[%emt 0:01:33]} 7. cxd5 {[%emt 0:01:06]} exd5 {[%emt 0:00:29]} 8. d4 {[%emt 0:00:03]} Nc6 {[%emt 0:04:47]} 9. Bg5 {[%emt 0:00:31]} b6 {[%emt 0:04:29]} 10. dxc5 {[%emt 0:06:00]} bxc5 {[%emt 0:00:44]} 11. Bxf6 {[%emt 0:06:12]} Bxf6 {[%emt 0:00:24]} 12. Qxd5 {[%emt 0:05:02]} Qxd5 {[%emt 0:04:37]} 13. Nxd5 {[%emt 0:00:02]} Bxb2 {[%emt 0:01:00]} 14. Rab1 {[%emt 0:02:51]} Rb8 {[%emt 0:00:34]} 15. Nd2 {[%emt 0:02:55]} Ba6 {[%emt 0:03:09]} 16. Nb3 {[%emt 0:03:29]} Bd4 {[%emt 0:08:26]} 17. Nc7 {[%emt 0:03:16]} Bxe2 {[%emt 0:20:15]} 18. Bxc6 {[%emt 0:00:22]} Bxf1 {[%emt 0:00:20]} 19. Rxf1 {[%emt 0:00:23]} Rbc8 {[%emt 0:00:29]} 20. Nd5 {[%emt 0:01:04]} Rcd8 {[%emt 0:09:04]} 21. Rc1 {[%emt 0:11:38]} Rd6 {[%emt 0:01:09]} 22. Ne7+ {[%emt 0:01:03]} Kh8 {[%emt 0:00:23]} 23. Bb5 {[%emt 0:01:09]} g6 {[%emt 0:02:39]} 24. Nxc5 {[%emt 0:03:34]} f5 {[%emt 0:06:24]} 25. Nb3 {[%emt 0:15:13]} Bb6 {[%emt 0:09:12]} 26. Nc8 {[%emt 0:01:24]} Rd5 {[%emt 0:01:39]} 27. a4 {[%emt 0:03:46]} f4 {[%emt 0:03:22]} 28. Nxb6 axb6 {[%emt 0:07:27]} 29. Rc2 {[%emt 0:13:02]} Kg7 {[%emt 0:03:13]} 30. Nd2 {[%emt 0:00:48]} h5 {[%emt 0:02:01]} 31. Kg2 {[%emt 0:02:02]} Rc5 {[%emt 0:02:09]} 32. Rxc5 {[%emt 0:02:14]} bxc5 {[%emt 0:00:03]} 33. gxf4 {[%emt 0:01:07]} Rxf4 {[%emt 0:00:25]} 34. Nc4 {[%emt 0:00:13]} Kf6 {[%emt 0:00:27]} 35. a5 {[%emt 0:00:29]} Ke6 {[%emt 0:00:37]} 36. a6 {[%emt 0:00:12]} Rf7 {[%emt 0:00:20]} 37. Bc6 {[%emt 0:00:48]} Rc7 {[%emt 0:00:41]} 38. Bb7 {[%emt 0:00:24] Kd5} 1-0

[Event "19th IPCA WCC 2019"]
[Site "Ruzomberok"]
[Date "2019.06.28"]
[Round "1.12"]
[White "Zicho, Anton"]
[Black "Glazar, Domagoj"]
[Result "0-1"]
[ECO "A05"]
[WhiteElo "1662"]
[BlackElo "2153"]
[Annotator "NA"]
[PlyCount "48"]
[EventDate "2019.06.28"]
[EventType "swiss"]
[EventCountry "SVK"]
[SourceTitle "playchess.com"]
[Source "ChessBase"]
[SourceQuality "1"]
[TimeControl "5400+30"]

1. Nf3 {[%emt 0:05:25]} Nf6 {[%emt 0:00:00]} 2. d4 {[%emt 0:00:27]} c5 {[%emt 0:00:25]} 3. Bf4 {[%emt 0:01:53]} cxd4 {[%emt 0:01:24]} 4. Nxd4 {[%emt 0:04:13]} e5 {[%emt 0:01:02]} 5. Nb5 {[%emt 0:03:04]} exf4 {[%emt 0:01:40]} 6. Nd6+ {[%emt 0:00:03]} Bxd6 {[%emt 0:00:23]} 7. Qxd6 {[%emt 0:00:02]} Qa5+ {[%emt 0:01:53]} 8. Nc3 {[%emt 0:00:50]} Ne4 {[%emt 0:01:30]} 9. Qd3 {[%emt 0:01:28]} Nxc3 {[%emt 0:00:21]} 10. bxc3 {[%emt 0:00:38]} O-O {[%emt 0:00:22]} 11. g3 {[%emt 0:00:55]} Na6 {[%emt 0:02:39]} 12. Bg2 {[%emt 0:00:28]} Nc5 {[%emt 0:00:38]} 13. Qd4 {[%emt 0:00:52]} d6 {[%emt 0:01:26]} 14. O-O {[%emt 0:02:01]} fxg3 {[%emt 0:00:19]} 15. hxg3 {[%emt 0:00:17]} Na4 {[%emt 0:01:08]} 16. Qxd6 {[%emt 0:02:51]} Nxc3 {[%emt 0:00:42]} 17. Bf3 {[%emt 0:01:29]} Bf5 {[%emt 0:01:00]} 18. Rfc1 {[%emt 0:05:47]} Rad8 {[%emt 0:02:25]} 19. Qf4 {[%emt 0:00:13]} Be4 {[%emt 0:01:06]} 20. Kg2 {[%emt 0:03:18]} Bxf3+ {[%emt 0:00:44]} 21. Qxf3 {[%emt 0:01:07]} Qd5 {[%emt 0:00:18]} 22. e3 {[%emt 0:01:22]} Qxf3+ {[%emt 0:00:25]} 23. Kxf3 {[%emt 0:00:34]} b5 {[%emt 0:00:14]} 24. a3 {[%emt 0:00:29]} Rd2 {[%emt 0:00:18]} 0-1

[Event "19th IPCA WCC 2019"]
[Site "Ruzomberok"]
[Date "2019.06.28"]
[Round "1.13"]
[White "Valenta, Vit"]
[Black "Samarth J Rao"]
[Result "1-0"]
[ECO "C29"]
[WhiteElo "2147"]
[BlackElo "1593"]
[Annotator "NA"]
[PlyCount "103"]
[EventDate "2019.06.28"]
[EventType "swiss"]
[EventCountry "SVK"]
[SourceTitle "playchess.com"]
[Source "ChessBase"]
[SourceQuality "1"]
[TimeControl "5400+30"]

1. e4 {[%emt 0:00:00]} e5 {[%emt 0:00:00]} 2. Nc3 {[%emt 0:00:00]} Nf6 {[%emt 0:00:57]} 3. f4 {[%emt 0:00:11]} d5 {[%emt 0:01:21]} 4. fxe5 {[%emt 0:00:27]} Nxe4 {[%emt 0:00:22]} 5. d3 {[%emt 0:00:34]} Qh4+ {[%emt 0:00:10]} 6. g3 {[%emt 0:00:05]} Nxg3 {[%emt 0:00:48]} 7. Nf3 {[%emt 0:00:06]} Qh5 {[%emt 0:00:39]} 8. Nxd5 {[%emt 0:00:17]} Bg4 {[%emt 0:01:07]} 9. Bg2 {[%emt 0:06:11]} Bxf3 10. Qxf3 {[%emt 0:06:11]} Qxe5+ {[%emt 0:04:00]} 11. Qe3 {[%emt 0:04:10]} Qxe3+ {[%emt 0:04:52]} 12. Bxe3 {[%emt 0:00:39]} Nf5 {[%emt 0:02:03]} 13. Nxc7+ {[%emt 0:01:06]} Kd8 {[%emt 0:00:09]} 14. Bf4 {[%emt 0:00:22]} Bd6 {[%emt 0:01:18]} 15. Bxd6 {[%emt 0:00:32]} Nxd6 {[%emt 0:00:06]} 16. Nxa8 {[%emt 0:00:12]} Nc6 {[%emt 0:00:19]} 17. c4 {[%emt 0:07:58]} f5 {[%emt 0:06:44]} 18. Kd2 {[%emt 0:11:34]} Kd7 {[%emt 0:00:54]} 19. Rhf1 {[%emt 0:02:34]} g6 {[%emt 0:01:14]} 20. b4 {[%emt 0:00:45]} Rxa8 {[%emt 0:00:47]} 21. b5 {[%emt 0:05:09]} Nd4 {[%emt 0:02:23]} 22. Rae1 {[%emt 0:05:07]} Ne6 {[%emt 0:08:10]} 23. Re5 {[%emt 0:01:14]} Re8 {[%emt 0:15:13]} 24. Rfe1 {[%emt 0:02:29]} Nf7 {[%emt 0:10:33]} 25. Rd5+ {[%emt 0:03:36]} Kc7 {[%emt 0:08:31]} 26. c5 {[%emt 0:00:54]} Nfd8 {[%emt 0:08:33]} 27. b6+ {[%emt 0:01:01]} axb6 28. cxb6+ {[%emt 0:00:12]} Kc8 {[%emt 0:08:49]} 29. Rd6 {[%emt 0:02:01]} Ng7 {[%emt 0:02:03]} 30. Rc1+ {[%emt 0:01:17]} Kb8 {[%emt 0:02:13]} 31. Rc7 {[%emt 0:03:21]} Nge6 {[%emt 0:02:13]} 32. Rxh7 {[%emt 0:02:09]} g5 {[%emt 0:01:46]} 33. Rdd7 {[%emt 0:01:52]} Nf8 {[%emt 0:03:03]} 34. Rhe7 {[%emt 0:00:59]} Nxd7 {[%emt 0:01:11]} 35. Rxe8 {[%emt 0:00:15]} Kc8 36. Bxb7+ {[%emt 0:00:31]} Kxb7 {[%emt 0:00:37]} 37. Rxd8 {[%emt 0:00:05]} Nxb6 38. Rf8 {[%emt 0:00:30]} Nd7 {[%emt 0:02:20]} 39. Rxf5 {[%emt 0:00:08]} g4 {[%emt 0:00:00]} 40. Rg5 {[%emt 0:00:34]} Nf6 41. Rg6 {[%emt 0:00:09]} Nd5 {[%emt 0:01:28]} 42. Rxg4 {[%emt 0:00:07]} Kc6 {[%emt 0:00:38]} 43. h4 {[%emt 0:00:03]} Kd6 {[%emt 0:00:19]} 44. h5 {[%emt 0:00:04]} Ke7 {[%emt 0:00:14]} 45. h6 {[%emt 0:00:05]} Nf6 {[%emt 0:00:14]} 46. Rg7+ {[%emt 0:00:09]} Kf8 47. a4 Ne8 {[%emt 0:02:06]} 48. Ra7 {[%emt 0:00:38]} Nf6 {[%emt 0:00:19]} 49. h7 {[%emt 0:00:19]} Nxh7 50. Rxh7 Ke8 {[%emt 0:01:18]} 51. a5 {[%emt 0:00:57]} Kd8 {[%emt 0:00:25]} 52. a6 {[%emt 0:00:07]} 1-0

[Event "19th IPCA WCC 2019"]
[Site "Ruzomberok"]
[Date "2019.06.28"]
[Round "1.14"]
[White "Engel, Katalin"]
[Black "Wielecki, Zygmunt"]
[Result "0-1"]
[ECO "E61"]
[WhiteElo "1537"]
[BlackElo "2145"]
[Annotator "NA"]
[PlyCount "60"]
[EventDate "2019.06.28"]
[EventType "swiss"]
[EventCountry "SVK"]
[SourceTitle "playchess.com"]
[Source "ChessBase"]
[SourceQuality "1"]
[TimeControl "5400+30"]

1. d4 {[%emt 0:00:00]} Nf6 {[%emt 0:00:10]} 2. c4 {[%emt 0:00:00]} g6 {[%emt 0:01:00]} 3. Nc3 {[%emt 0:00:00]} Bg7 {[%emt 0:00:10]} 4. Nf3 {[%emt 0:00:09]} d6 {[%emt 0:00:23]} 5. e3 {[%emt 0:00:22]} O-O {[%emt 0:00:15]} 6. Be2 {[%emt 0:00:02]} Nbd7 {[%emt 0:00:44]} 7. O-O {[%emt 0:00:27]} e5 {[%emt 0:00:44]} 8. Rb1 {[%emt 0:01:59]} e4 {[%emt 0:06:38]} 9. Nd2 Re8 {[%emt 0:00:30]} 10. Qc2 Qe7 {[%emt 0:00:30]} 11. b4 Nf8 12. d5 {[%emt 0:19:09]} Bf5 {[%emt 0:02:12]} 13. b5 {[%emt 0:01:24]} h5 {[%emt 0:00:48]} 14. a4 {[%emt 0:00:28]} N8h7 {[%emt 0:00:46]} 15. Nb3 {[%emt 0:00:38]} Ng5 {[%emt 0:04:58]} 16. Nd4 {[%emt 0:00:32]} Ng4 {[%emt 0:10:32]} 17. Nxf5 {[%emt 0:01:30]} gxf5 {[%emt 0:00:19]} 18. Bb2 {[%emt 0:01:49]} Be5 {[%emt 0:07:15]} 19. Bxg4 {[%emt 0:02:44]} hxg4 {[%emt 0:00:13]} 20. Ne2 {[%emt 0:00:34]} Bxh2+ {[%emt 0:14:06]} 21. Kxh2 {[%emt 0:00:55]} Nf3+ {[%emt 0:00:32]} 22. gxf3 {[%emt 0:00:56]} Qh4+ {[%emt 0:00:08]} 23. Kg1 {[%emt 0:00:39]} gxf3 {[%emt 0:00:09]} 24. Nf4 {[%emt 0:00:58]} Kh7 {[%emt 0:00:18]} 25. Qc3 {[%emt 0:02:00]} Rg8+ {[%emt 0:00:11]} 26. Qg7+ {[%emt 0:00:11]} Rxg7+ {[%emt 0:00:16]} 27. Bxg7 {[%emt 0:00:08]} Rg8 {[%emt 0:00:07]} 28. Rfc1 {[%emt 0:04:15]} Rxg7+ {[%emt 0:00:14]} 29. Ng2 {[%emt 0:00:21]} Rxg2+ {[%emt 0:00:10]} 30. Kf1 {[%emt 0:00:14]} Qh1# 0-1

[Event "19th IPCA WCC 2019"]
[Site "Ruzomberok"]
[Date "2019.06.28"]
[Round "1.16"]
[White "Frumin, Rebeka"]
[Black "Tebenkov, Vladislav"]
[Result "0-1"]
[ECO "C44"]
[WhiteElo "1398"]
[BlackElo "2096"]
[Annotator "NA"]
[PlyCount "102"]
[EventDate "2019.06.28"]
[EventType "swiss"]
[EventCountry "SVK"]
[SourceTitle "playchess.com"]
[Source "ChessBase"]
[SourceQuality "1"]
[TimeControl "5400+30"]

1. e4 {[%emt 0:00:00]} e5 {[%emt 0:00:00]} 2. Nf3 {[%emt 0:00:28]} Nc6 {[%emt 0:00:00]} 3. d4 {[%emt 0:01:18]} exd4 {[%emt 0:00:00]} 4. Nxd4 {[%emt 0:01:00]} Nf6 {[%emt 0:00:03]} 5. Nc3 {[%emt 0:01:10]} Bb4 {[%emt 0:00:36]} 6. Nxc6 {[%emt 0:00:40]} bxc6 {[%emt 0:00:12]} 7. Bd3 {[%emt 0:01:24]} O-O {[%emt 0:00:25]} 8. O-O {[%emt 0:00:43]} d5 {[%emt 0:00:16]} 9. exd5 {[%emt 0:03:42]} cxd5 {[%emt 0:01:16]} 10. Bg5 {[%emt 0:02:44]} c6 {[%emt 0:00:55]} 11. Ne2 {[%emt 0:02:27]} Bg4 {[%emt 0:08:11]} 12. h3 {[%emt 0:02:15]} Bh5 {[%emt 0:00:31]} 13. c3 {[%emt 0:00:52]} Be7 {[%emt 0:02:02]} 14. Qc2 {[%emt 0:02:11]} Bg6 {[%emt 0:02:09]} 15. Nf4 {[%emt 0:03:39]} Bxd3 {[%emt 0:01:47]} 16. Qxd3 {[%emt 0:00:51]} Ne4 {[%emt 0:02:53]} 17. Bxe7 {[%emt 0:00:21]} Qxe7 {[%emt 0:00:03]} 18. Rfe1 {[%emt 0:01:02]} Qf6 {[%emt 0:06:18]} 19. Qf3 {[%emt 0:03:31]} Rab8 {[%emt 0:10:51]} 20. Re2 {[%emt 0:03:08]} Rb7 {[%emt 0:02:33]} 21. Nh5 {[%emt 0:01:37]} Qxf3 {[%emt 0:05:36]} 22. gxf3 {[%emt 0:00:10]} Ng5 {[%emt 0:01:45]} 23. Kg2 {[%emt 0:01:56]} Ne6 {[%emt 0:01:02]} 24. Kg3 {[%emt 0:01:26]} Rfb8 {[%emt 0:05:32]} 25. Rb1 {[%emt 0:03:09]} a5 {[%emt 0:01:36]} 26. a4 {[%emt 0:01:43]} g6 {[%emt 0:00:53]} 27. Nf4 {[%emt 0:02:32]} Nc5 {[%emt 0:00:11]} 28. b3 {[%emt 0:01:30]} Rxb3 {[%emt 0:02:46]} 29. Rxb3 {[%emt 0:01:02]} Rxb3 {[%emt 0:00:06]} 30. Re8+ {[%emt 0:02:33]} Kg7 {[%emt 0:00:05]} 31. Ra8 {[%emt 0:00:34]} Nxa4 {[%emt 0:00:38]} 32. Rxa5 {[%emt 0:00:17]} Nxc3 {[%emt 0:00:09]} 33. Kg2 {[%emt 0:01:09]} Nb5 {[%emt 0:01:57]} 34. Ra6 {[%emt 0:02:33]} Rc3 {[%emt 0:02:01]} 35. Rb6 {[%emt 0:02:05]} Nd4 {[%emt 0:03:41]} 36. Rb4 {[%emt 0:02:13]} Nxf3 {[%emt 0:01:48]} 37. Ne2 {[%emt 0:01:27]} Ra3 {[%emt 0:00:13]} 38. Rb6 {[%emt 0:01:12]} c5 {[%emt 0:01:51]} 39. Rb5 {[%emt 0:00:47]} Ne1+ {[%emt 0:00:57]} 40. Kh2 {[%emt 0:00:40]} Nd3 {[%emt 0:00:20]} 41. Kg2 {[%emt 0:01:13]} d4 {[%emt 0:01:25]} 42. Kf1 {[%emt 0:02:18]} Ra1+ {[%emt 0:01:36]} 43. Kg2 {[%emt 0:00:12]} Re1 {[%emt 0:01:44]} 44. Ng3 {[%emt 0:01:50]} c4 {[%emt 0:00:24]} 45. Rb6 {[%emt 0:02:20]} c3 {[%emt 0:00:54]} 46. Rc6 {[%emt 0:00:55]} Nb4 {[%emt 0:00:07]} 47. Rc4 {[%emt 0:00:42]} c2 {[%emt 0:00:13]} 48. Rxb4 {[%emt 0:03:15]} c1=Q {[%emt 0:00:09]} 49. Rxd4 {[%emt 0:00:33]} Rg1+ {[%emt 0:01:34]} 50. Kh2 {[%emt 0:00:56]} Rxg3 {[%emt 0:00:09]} 51. Kxg3 {[%emt 0:00:57]} Qc3+ {[%emt 0:00:05]} 0-1

[Event "19th IPCA WCC 2019"]
[Site "Ruzomberok"]
[Date "2019.06.28"]
[Round "1.17"]
[White "Lipilin, Ilia"]
[Black "Pamarthi Audietya Aazadh"]
[Result "1-0"]
[ECO "A02"]
[WhiteElo "2084"]
[BlackElo "1346"]
[Annotator "NA"]
[PlyCount "97"]
[EventDate "2019.06.28"]
[EventType "swiss"]
[EventCountry "SVK"]
[SourceTitle "playchess.com"]
[Source "ChessBase"]
[SourceQuality "1"]
[TimeControl "5400+30"]

1. f4 {[%emt 0:00:00]} Nc6 {[%emt 0:00:07]} 2. Nf3 {[%emt 0:00:00]} d6 {[%emt 0:01:02]} 3. Nc3 {[%emt 0:01:09]} Nf6 {[%emt 0:00:53]} 4. g3 {[%emt 0:01:03]} g6 {[%emt 0:01:52]} 5. Bg2 {[%emt 0:00:14]} Bg7 {[%emt 0:00:18]} 6. e4 {[%emt 0:00:24]} e5 {[%emt 0:03:17]} 7. d3 {[%emt 0:00:28]} Bg4 {[%emt 0:02:50]} 8. O-O {[%emt 0:00:17]} O-O {[%emt 0:01:22]} 9. Be3 {[%emt 0:01:19]} Nd4 {[%emt 0:01:41]} 10. Qd2 {[%emt 0:02:54]} Bxf3 {[%emt 0:02:55]} 11. Bxf3 {[%emt 0:00:16]} c5 {[%emt 0:05:36]} 12. Kh1 {[%emt 0:02:16]} Nd7 {[%emt 0:04:06]} 13. Bg2 {[%emt 0:01:01]} f6 {[%emt 0:01:36]} 14. Bh3 {[%emt 0:02:35]} Rb8 {[%emt 0:00:40]} 15. Bxd7 {[%emt 0:05:44]} Qxd7 {[%emt 0:00:20]} 16. Bxd4 {[%emt 0:02:28]} exd4 {[%emt 0:00:50]} 17. Nd1 {[%emt 0:01:12]} b5 {[%emt 0:00:17]} 18. a4 {[%emt 0:00:57]} a6 {[%emt 0:00:39]} 19. Qa5 {[%emt 0:01:20]} Qb7 {[%emt 0:00:29]} 20. axb5 {[%emt 0:00:42]} axb5 {[%emt 0:00:33]} 21. Qa6 {[%emt 0:00:37]} Rfd8 {[%emt 0:06:36]} 22. Nf2 {[%emt 0:01:00]} Rd7 {[%emt 0:06:44]} 23. Kg2 {[%emt 0:00:45]} h5 {[%emt 0:00:37]} 24. Qxb7 {[%emt 0:00:18]} Rdxb7 {[%emt 0:00:58]} 25. Ra6 {[%emt 0:00:16]} Bf8 {[%emt 0:01:38]} 26. Rfa1 {[%emt 0:00:53]} b4 {[%emt 0:01:51]} 27. b3 {[%emt 0:00:26]} Re8 {[%emt 0:00:40]} 28. Kf3 {[%emt 0:01:22]} Rf7 {[%emt 0:06:25]} 29. Ra7 {[%emt 0:00:58]} f5 {[%emt 0:01:29]} 30. Rxf7 {[%emt 0:00:42]} Kxf7 {[%emt 0:00:22]} 31. h3 {[%emt 0:01:54]} Be7 {[%emt 0:00:35]} 32. Ra7 {[%emt 0:02:05]} Kf6 {[%emt 0:00:37]} 33. g4 {[%emt 0:00:43]} hxg4+ {[%emt 0:06:54]} 34. hxg4 {[%emt 0:00:04]} Bf8 {[%emt 0:02:08]} 35. Nh3 {[%emt 0:04:39]} Re7 {[%emt 0:01:12]} 36. Ra8 {[%emt 0:02:18]} fxe4+ {[%emt 0:01:46]} 37. dxe4 {[%emt 0:00:17]} Kg7 {[%emt 0:00:24]} 38. Ng5 {[%emt 0:00:48]} Kg8 {[%emt 0:05:52]} 39. f5 {[%emt 0:02:01]} gxf5 {[%emt 0:00:56]} 40. gxf5 {[%emt 0:00:19]} Rg7 {[%emt 0:11:27]} 41. Ne6 {[%emt 0:00:29]} Rf7 {[%emt 0:02:12]} 42. Rc8 {[%emt 0:00:59]} Rf6 {[%emt 0:00:35]} 43. Kf4 {[%emt 0:00:36]} Rh6 {[%emt 0:01:55]} 44. Rxf8+ {[%emt 0:00:32]} Kh7 {[%emt 0:00:09]} 45. Ng5+ {[%emt 0:01:29]} Kg7 {[%emt 0:00:05]} 46. Rf7+ {[%emt 0:00:11]} Kg8 {[%emt 0:00:08]} 47. Rc7 {[%emt 0:00:52]} Rh2 {[%emt 0:00:24]} 48. Kg3 {[%emt 0:00:24]} Rxc2 {[%emt 0:00:10]} 49. f6 {[%emt 0:00:09]} 1-0

[Event "19th IPCA WCC 2019"]
[Site "Ruzomberok"]
[Date "2019.06.28"]
[Round "1.18"]
[White "Sovietova, Kateryna"]
[Black "Kovacevic, Krsto"]
[Result "0-1"]
[ECO "A45"]
[WhiteElo "1279"]
[BlackElo "2049"]
[Annotator "NA"]
[PlyCount "84"]
[EventDate "2019.06.28"]
[EventType "swiss"]
[EventCountry "SVK"]
[SourceTitle "playchess.com"]
[Source "ChessBase"]
[SourceQuality "1"]
[TimeControl "5400+30"]

1. d4 Nf6 2. Bf4 {[%emt 0:00:39]} d5 {[%emt 0:00:29]} 3. e3 {[%emt 0:00:15]} e6 {[%emt 0:00:27]} 4. Nf3 {[%emt 0:00:16]} c5 {[%emt 0:00:18]} 5. c3 {[%emt 0:00:52]} Nc6 {[%emt 0:00:17]} 6. h3 {[%emt 0:03:19]} Bd6 {[%emt 0:02:42]} 7. Bxd6 {[%emt 0:00:26]} Qxd6 {[%emt 0:00:20]} 8. Bd3 {[%emt 0:01:02]} O-O {[%emt 0:02:54]} 9. O-O {[%emt 0:00:06]} e5 {[%emt 0:02:30]} 10. dxe5 {[%emt 0:03:15]} Nxe5 {[%emt 0:00:18]} 11. Nxe5 {[%emt 0:03:32]} Qxe5 {[%emt 0:00:15]} 12. Nd2 {[%emt 0:01:37]} Bd7 {[%emt 0:01:55]} 13. Re1 {[%emt 0:06:10]} Bc6 {[%emt 0:04:54]} 14. Rc1 {[%emt 0:07:24]} Rad8 {[%emt 0:01:48]} 15. b3 {[%emt 0:24:03]} Rfe8 {[%emt 0:01:58]} 16. b4 {[%emt 0:11:33]} b6 {[%emt 0:02:21]} 17. a4 {[%emt 0:01:51]} Ne4 {[%emt 0:06:40]} 18. Qc2 {[%emt 0:13:22]} Re6 {[%emt 0:13:48]} 19. Nxe4 {[%emt 0:07:38]} dxe4 {[%emt 0:00:28]} 20. Be2 {[%emt 0:00:32]} h5 {[%emt 0:07:59]} 21. b5 {[%emt 0:01:46]} Bb7 {[%emt 0:03:50]} 22. Red1 {[%emt 0:00:24]} Red6 {[%emt 0:01:00]} 23. Rxd6 {[%emt 0:01:43]} Rxd6 {[%emt 0:00:13]} 24. Bc4 {[%emt 0:01:13]} Bd5 {[%emt 0:04:23]} 25. Be2 {[%emt 0:01:12]} h4 {[%emt 0:12:17]} 26. Rd1 {[%emt 0:02:14]} Rg6 {[%emt 0:05:51]} 27. c4 {[%emt 0:00:47]} Be6 {[%emt 0:00:46]} 28. Bg4 {[%emt 0:02:25]} Qg5 {[%emt 0:08:04]} 29. Qxe4 {[%emt 0:01:31]} Bxg4 {[%emt 0:06:30]} 30. hxg4 {[%emt 0:00:15]} Qxg4 {[%emt 0:00:24]} 31. Qxg4 {[%emt 0:01:01]} Rxg4 {[%emt 0:00:14]} 32. Kh2 {[%emt 0:00:28]} Rxc4 {[%emt 0:00:19]} 33. Rd8+ {[%emt 0:01:24]} Kh7 {[%emt 0:00:09]} 34. Rd7 {[%emt 0:00:04]} Rxa4 {[%emt 0:00:34]} 35. Rxf7 {[%emt 0:00:14]} Kg6 {[%emt 0:00:34]} 36. Rd7 {[%emt 0:01:07]} Rb4 {[%emt 0:01:12]} 37. Rxa7 {[%emt 0:00:36]} Rxb5 {[%emt 0:00:13]} 38. Ra4 {[%emt 0:00:32]} Rb4 {[%emt 0:00:20]} 39. Ra3 {[%emt 0:00:23]} Kf5 {[%emt 0:03:48]} 40. Kh3 {[%emt 0:00:36]} g5 {[%emt 0:00:37]} 41. f3 {[%emt 0:00:44]} c4 {[%emt 0:00:30]} 42. Ra5+ {[%emt 0:01:09]} bxa5 {[%emt 0:00:17]} 0-1

[Event "19th IPCA WCC 2019"]
[Site "Ruzomberok"]
[Date "2019.06.28"]
[Round "1.19"]
[White "Sovetov, Oleksandr"]
[Black "Angappan A"]
[Result "1-0"]
[ECO "A06"]
[WhiteElo "2009"]
[BlackElo "1267"]
[Annotator "NA"]
[PlyCount "101"]
[EventDate "2019.06.28"]
[EventType "swiss"]
[EventCountry "SVK"]
[SourceTitle "playchess.com"]
[Source "ChessBase"]
[SourceQuality "1"]
[TimeControl "5400+30"]

1. Nf3 {[%emt 0:00:00]} d5 {[%emt 0:00:00]} 2. g3 {[%emt 0:00:00]} e6 {[%emt 0:00:00]} 3. Bg2 {[%emt 0:00:12]} Nf6 {[%emt 0:00:12]} 4. O-O {[%emt 0:00:38]} Be7 {[%emt 0:00:08]} 5. d4 b6 {[%emt 0:00:20]} 6. c4 {[%emt 0:01:19]} Bb7 {[%emt 0:00:20]} 7. Nc3 {[%emt 0:02:43]} O-O {[%emt 0:00:20]} 8. Ne5 {[%emt 0:03:53]} Nbd7 {[%emt 0:00:17]} 9. Qa4 {[%emt 0:05:42]} c5 {[%emt 0:01:51]} 10. Nxd7 Qxd7 {[%emt 0:01:21]} 11. Qxd7 {[%emt 0:04:44]} Nxd7 {[%emt 0:04:54]} 12. dxc5 {[%emt 0:00:30]} Nxc5 {[%emt 0:00:30]} 13. cxd5 {[%emt 0:00:30]} exd5 {[%emt 0:00:30]} 14. Nxd5 {[%emt 0:00:30]} Bxd5 15. Bxd5 Rad8 16. Bf3 {[%emt 0:01:57]} Bf6 {[%emt 0:01:30]} 17. Rb1 {[%emt 0:00:40]} Na4 {[%emt 0:01:37]} 18. Bc6 {[%emt 0:01:38]} Nc5 {[%emt 0:01:04]} 19. b3 {[%emt 0:05:18]} Rd6 {[%emt 0:01:40]} 20. Bf3 {[%emt 0:00:53]} Rfd8 {[%emt 0:02:15]} 21. Bf4 {[%emt 0:01:15]} Rd4 {[%emt 0:00:46]} 22. Rbc1 {[%emt 0:02:41]} Ne6 {[%emt 0:00:50]} 23. Be3 {[%emt 0:00:54]} R4d6 {[%emt 0:01:31]} 24. Kg2 {[%emt 0:01:35]} Bg5 {[%emt 0:01:49]} 25. Bxg5 {[%emt 0:00:43]} Nxg5 {[%emt 0:00:11]} 26. Rc7 {[%emt 0:00:36]} R6d7 {[%emt 0:01:21]} 27. Rfc1 {[%emt 0:00:38]} Ne6 {[%emt 0:00:19]} 28. Rxd7 {[%emt 0:00:49]} Rxd7 {[%emt 0:00:14]} 29. Bg4 {[%emt 0:00:37]} Rc7 {[%emt 0:01:53]} 30. Rd1 {[%emt 0:01:56]} Nf8 {[%emt 0:00:30]} 31. Rd2 {[%emt 0:01:17]} g6 {[%emt 0:00:42]} 32. h4 {[%emt 0:01:18]} h5 {[%emt 0:00:33]} 33. Bf3 {[%emt 0:00:44]} Rd7 {[%emt 0:01:27]} 34. Rc2 {[%emt 0:00:47]} Ne6 {[%emt 0:00:46]} 35. e3 {[%emt 0:00:15]} Rc7 {[%emt 0:02:27]} 36. Rd2 {[%emt 0:00:36]} Kf8 {[%emt 0:00:46]} 37. Kf1 {[%emt 0:00:36]} Ke7 {[%emt 0:00:59]} 38. Ke2 {[%emt 0:02:29]} Nc5 {[%emt 0:01:43]} 39. Bd5 {[%emt 0:02:31]} Rd7 {[%emt 0:01:38]} 40. e4 {[%emt 0:01:54]} Na6 {[%emt 0:02:50]} 41. a3 {[%emt 0:01:13]} Nc5 {[%emt 0:01:16]} 42. b4 {[%emt 0:01:46]} Na4 {[%emt 0:00:34]} 43. Rc2 {[%emt 0:00:10]} b5 {[%emt 0:01:46]} 44. Bb3 {[%emt 0:01:39]} Nb6 {[%emt 0:04:55]} 45. Rc5 {[%emt 0:00:31]} a6 {[%emt 0:02:23]} 46. Rc6 {[%emt 0:00:47]} Rd6 {[%emt 0:01:30]} 47. Rxd6 {[%emt 0:00:14]} Kxd6 {[%emt 0:00:17]} 48. Bxf7 {[%emt 0:00:05]} Nc4 {[%emt 0:01:51]} 49. Bxc4 {[%emt 0:00:14]} bxc4 {[%emt 0:00:05]} 50. f4 {[%emt 0:00:14]} Kc6 {[%emt 0:03:01]} 51. a4 {[%emt 0:00:05] Kd5} 1-0

[Event "19th IPCA WCC 2019"]
[Site "Ruzomberok"]
[Date "2019.06.28"]
[Round "1.20"]
[White "Wollner, Bohus"]
[Black "Jurkiewicz, Krzysztof"]
[Result "0-1"]
[ECO "E90"]
[WhiteElo "1222"]
[BlackElo "2275"]
[Annotator "NA"]
[PlyCount "52"]
[EventDate "2019.06.28"]
[EventType "swiss"]
[EventCountry "SVK"]
[SourceTitle "playchess.com"]
[Source "ChessBase"]
[SourceQuality "1"]
[TimeControl "5400+30"]

1. d4 {[%emt 0:00:00]} Nf6 {[%emt 0:00:00]} 2. c4 {[%emt 0:00:16]} g6 {[%emt 0:00:00]} 3. Nc3 {[%emt 0:00:38]} Bg7 {[%emt 0:00:00]} 4. e4 {[%emt 0:01:31]} d6 {[%emt 0:00:00]} 5. Nf3 {[%emt 0:02:03]} O-O {[%emt 0:00:00]} 6. Bg5 {[%emt 0:00:16]} c5 {[%emt 0:00:38]} 7. d5 {[%emt 0:04:35]} a6 {[%emt 0:00:59]} 8. Bxf6 {[%emt 0:02:08]} Bxf6 {[%emt 0:00:27]} 9. Be2 {[%emt 0:00:45]} e6 {[%emt 0:01:18]} 10. O-O {[%emt 0:00:41]} exd5 {[%emt 0:00:40]} 11. exd5 {[%emt 0:00:32]} Bf5 {[%emt 0:01:16]} 12. h3 {[%emt 0:03:01]} Qd7 13. Bd3 g5 14. Bxf5 {[%emt 0:06:55]} Qxf5 {[%emt 0:08:20]} 15. Re1 {[%emt 0:01:25]} g4 {[%emt 0:10:30]} 16. hxg4 {[%emt 0:01:40]} Qxg4 {[%emt 0:00:06]} 17. Ne4 {[%emt 0:00:33]} Bg7 {[%emt 0:11:08]} 18. Qd3 {[%emt 0:02:15]} Qg6 {[%emt 0:04:09]} 19. Rab1 {[%emt 0:05:59]} Nd7 {[%emt 0:03:05]} 20. Kf1 {[%emt 0:04:40]} Rfe8 {[%emt 0:00:43]} 21. Nfd2 {[%emt 0:00:50]} Ne5 {[%emt 0:00:58]} 22. Qc2 {[%emt 0:03:29]} Ng4 {[%emt 0:02:08]} 23. Kg1 {[%emt 0:13:18]} Bd4 {[%emt 0:01:35]} 24. Re2 Re7 25. Rbe1 Rae8 26. Qd3 Qf5 0-1